bitfinex/quotes_SOLUSD_20240915
["timestamp","ask_amount","ask_price","bid_price","bid_amount"]
[1726428891537,7.4683,133.9,133.86,16.1678]
[1726428891745,7.31660754,133.9,133.86,16.1678]
[1726428893647,23.776884,133.91,133.86,16.1678]
[1726428893648,31.244584,133.91,133.86,16.1678]
[1726428897144,31.244084,133.92,133.86,16.1678]
[1726428900647,7.4677,133.91,133.86,16.1678]
[1726428900827,23.776884,133.9,133.86,16.1678]
[1726428901348,31.245184,133.9,133.86,16.1678]
[1726428901640,7.4698,133.88,133.84,0.2496483]
[1726428902125,23.776884,133.87,133.84,0.2496483]
[1726428902325,31.246784,133.87,133.84,0.2496483]
[1726428903224,31.247884,133.85,133.84,0.2496483]
[1726428903733,23.776884,133.85,133.84,0.2496483]
[1726428905345,31.247884,133.85,133.84,0.2496483]
[1726428907656,23.776884,133.85,133.84,0.2496483]
[1726428907820,7.47,133.87,133.84,0.2496483]
[1726428908028,27.4705,133.86,133.84,0.2496483]
[1726428909047,23.776884,133.85,133.84,0.2496483]
[1726428909454,31.247884,133.85,133.84,0.2496483]
[1726428925333,23.776884,133.85,133.84,0.2496483]
[1726428925546,385.6,133.87,133.84,0.2496483]
[1726428926257,393.07,133.87,133.84,0.2496483]
[1726428926460,385.6,133.87,133.84,0.2496483]
[1726428926667,385.6,133.87,133.84,16.1306483]
[1726428927039,7.4678,133.91,133.84,16.1306483]
[1726428928136,23.776884,133.9,133.84,16.1306483]
[1726428928544,7.4678,133.91,133.84,16.1306483]
[1726428928847,27.4672,133.92,133.84,31.2004029]
[1726428929545,7.4677,133.91,133.84,16.1306483]
[1726428929955,23.776884,133.9,133.84,16.1306483]
[1726428930136,23.776884,133.9,133.84,31.2004029]
[1726428930562,23.776884,133.91,133.84,31.2004029]
[1726428930761,20.0,133.92,133.85,15.0697546]
[1726428930977,7.4658,133.95,133.87,22.384]
[1726428931468,7.466,133.94,133.87,22.384]
[1726428932049,23.776884,133.93,133.87,22.384]
[1726428932562,23.776884,133.94,133.87,37.4537546]
[1726428933257,7.4647,133.97,133.89,15.0697546]
[1726428934677,23.776884,133.96,133.89,15.0697546]
[1726428934861,23.776884,133.96,133.88,16.3489]
[1726428934862,31.241784,133.96,133.88,31.4186546]
[1726428936183,31.241784,133.96,133.88,16.3489]
[1726428942782,31.241284,133.97,133.88,31.4186546]
[1726428942980,31.241284,133.97,133.89,22.6916]
[1726428943475,0.2496483,133.98,133.9,16.3489]
[1726428943476,7.7134483,133.98,133.9,16.3489]
[1726428948483,7.4644,133.97,133.9,16.3489]
[1726428948696,7.4649,133.96,133.9,16.3489]
[1726428948887,23.776884,133.95,133.9,16.3489]
[1726428954795,23.776884,133.96,133.9,16.3489]
[1726428960900,31.241984,133.96,133.9,16.3489]
[1726428961077,23.776884,133.93,133.9,16.3489]
[1726428961284,23.776884,133.92,133.9,16.3489]
[1726428961485,23.776884,133.92,133.84,0.2496483]
[1726428961486,23.776884,133.92,133.85,22.0394]
[1726428961693,7.4683,133.9,133.85,22.0394]
[1726428961883,23.776884,133.92,133.85,22.0394]
[1726428961884,7.4677,133.91,133.85,22.0394]
[1726428962706,23.776884,133.92,133.85,22.0394]
[1726428963003,23.776884,133.93,133.86,15.0697546]
[1726428963578,23.776884,133.93,133.86,16.37898706]
[1726428964201,23.776884,133.94,133.87,30.8461546]
[1726428964420,23.776884,133.94,133.88,6.263]
[1726428967919,23.776884,133.92,133.88,6.263]
[1726428968136,23.776884,133.94,133.88,6.263]
[1726428968431,20.0,133.93,133.88,6.263]
[1726428968609,23.776884,133.92,133.88,6.263]
[1726428969526,31.244084,133.92,133.88,6.263]
[1726428971016,23.776884,133.94,133.88,6.263]
[1726428971920,20.0,133.95,133.88,6.263]
[1726428971921,7.4655,133.95,133.88,6.263]
[1726428973120,7.4649,133.96,133.88,6.263]
[1726428975906,31.242384,133.95,133.88,6.263]
[1726428976104,7.466,133.94,133.88,6.263]
[1726428976522,7.4667,133.93,133.88,6.263]
[1726428976711,7.4672,133.92,133.88,6.263]
[1726428976916,23.776884,133.92,133.88,6.263]
[1726428981641,7.4671,133.92,133.88,6.263]
[1726428985441,23.776884,133.93,133.88,6.263]
[1726428985655,7.4672,133.92,133.88,6.263]
[1726428986145,31.243584,133.93,133.88,6.263]
[1726428987254,7.4661,133.94,133.88,6.263]
[1726428987426,20.0,133.95,133.88,6.263]
[1726428987754,27.466,133.95,133.88,6.263]
[1726428989853,27.466,133.95,133.89,4.17007245]
[1726428990163,31.242984,133.94,133.88,6.263]
[1726428990454,31.242984,133.94,133.89,4.16956004]
[1726428990654,31.242984,133.94,133.88,6.263]
[1726428991853,7.4676,133.92,133.88,6.263]
[1726429000434,31.242984,133.94,133.88,6.263]
[1726429000634,413.41530032,133.95,133.88,6.263]
[1726429000635,405.6,133.95,133.88,6.263]
[1726429000852,405.6,133.95,133.89,4.17386642]
[1726429001049,405.6,133.95,133.88,6.263]
[1726429001632,413.0655,133.95,133.88,6.263]
[1726429001832,23.776884,133.94,133.89,4.17358213]
[1726429002034,23.776884,133.94,133.88,6.263]
[1726429002257,23.776884,133.94,133.89,4.17346456]
[1726429002463,23.776884,133.94,133.88,6.263]
[1726429002464,31.242884,133.94,133.88,6.263]
[1726429003155,31.242884,133.94,133.89,4.17414541]
[1726429003367,31.242884,133.94,133.88,6.263]
[1726429003673,31.242884,133.94,133.89,4.17414507]
[1726429003843,31.242884,133.94,133.88,6.263]
[1726429004736,23.776884,133.94,133.88,21.3327546]
[1726429004932,385.6,133.97,133.89,15.6626]
[1726429004933,20.0,133.96,133.89,15.6626]
[1726429005153,23.776884,133.95,133.89,15.6626]
[1726429005747,385.6,133.97,133.89,30.7323546]
[1726429006137,16.3102483,134.02,133.91,15.6626]
[1726429006138,385.6,134.01,133.91,15.6626]
[1726429006343,385.6,134.01,133.91,30.7323546]
[1726429006563,7.4636,133.99,133.91,15.6626]
[1726429007732,24.0265323,133.98,133.91,15.6626]
[1726429009169,0.2496483,133.98,133.96,6.3957]
[1726429009385,0.2496483,133.98,133.97,15.6626]
[1726429019777,7.4644,133.97,133.93,21.127]
[1726429020355,7.4649,133.96,133.93,15.0359]
[1726429020979,7.4649,133.96,133.9,6.0911]
[1726429020980,7.4666,133.93,133.9,15.0359]
[1726429021178,23.776884,133.95,133.9,15.0359]
[1726429021179,7.4671,133.92,133.9,15.0359]
[1726429021354,7.4671,133.92,133.87,6.0911]
[1726429021877,23.776884,133.95,133.87,6.0911]
[1726429022061,7.4677,133.91,133.87,6.0911]
[1726429023177,23.776884,133.93,133.87,6.0911]
[1726429023356,20.0,133.92,133.87,6.0911]
[1726429023880,23.776884,133.93,133.87,6.0911]
[1726429024049,7.4661,133.94,133.87,6.0911]
[1726429025880,0.2496483,133.98,133.88,15.0697546]
[1726429026051,0.2496483,133.98,133.88,15.0359]
[1726429026251,7.4648,133.97,133.88,15.0359]
[1726429026879,7.4649,133.96,133.88,15.0359]
[1726429027552,23.776884,133.95,133.88,15.0359]
[1726429027768,7.4644,133.97,133.91,15.0359]
[1726429028273,7.465,133.96,133.91,15.0359]
[1726429029067,23.776884,133.95,133.91,15.0359]
[1726429038862,23.776884,133.96,133.91,15.0359]
[1726429040296,7.4644,133.97,133.91,15.0359]
[1726429040499,23.776884,133.97,133.91,15.0359]
[1726429041798,31.241284,133.97,133.91,15.0359]
[1726429043395,23.776884,133.97,133.91,15.0359]
[1726429045179,0.2496483,133.98,133.91,15.0359]
[1726429046483,24.0265323,133.98,133.91,15.0359]
[1726429055512,24.0265323,133.98,133.91,30.04770343]
[1726429055699,0.2496483,133.98,133.92,37.06990343]
[1726429056586,0.2496483,133.98,133.93,30.54540343]
[1726429056798,0.2496483,133.98,133.93,15.01180343]
[1726429056999,0.2496483,133.98,133.94,37.06990343]
[1726429057715,0.2496483,133.98,133.94,22.0581]
[1726429068793,0.2496483,133.98,133.94,26.22921695]
[1726429070087,0.2496483,133.98,133.94,22.0581]
[1726429077993,7.7135483,133.98,133.94,22.0581]
[1726429078307,7.7134483,133.98,133.94,15.5336]
[1726429078509,23.776884,133.97,133.94,15.5336]
[1726429078707,7.4649,133.96,133.91,15.7759]
[1726429078933,20.0,133.97,133.91,15.7759]
[1726429079136,7.4654,133.95,133.91,15.7759]
[1726429080321,31.241784,133.96,133.91,15.7759]
[1726429080508,23.776884,133.96,133.91,15.7759]
[1726429080710,20.0,133.97,133.91,15.7759]
[1726429081321,24.0265323,133.98,133.91,15.7759]
[1726429081524,20.0,133.97,133.91,15.7759]
[1726429082193,31.4904323,133.98,133.91,15.7759]
[1726429082711,0.2496483,133.98,133.91,30.78770343]
[1726429086228,0.2496483,133.98,133.91,15.7759]
[1726429090008,0.2496483,133.98,133.91,30.78770343]
[1726429091101,0.2496483,133.98,133.91,15.7759]
[1726429097932,0.2496483,133.98,133.91,30.78770343]
[1726429098147,0.2496483,133.98,133.91,15.01180343]
[1726429098438,0.2496483,133.98,133.92,23.081]
[1726429098813,0.2496483,133.98,133.92,38.09280343]
[1726429099016,0.2496483,133.98,133.94,16.4517]
[1726429102156,0.2496483,133.98,133.95,6.6293]
[1726429102937,0.2496483,133.98,133.97,16.4517]
[1726429106436,0.2496483,133.98,133.97,31.46350343]
[1726429111636,0.2496483,133.98,133.97,16.4517]
[1726429119366,0.2496483,133.98,133.97,31.46350343]
[1726429119675,0.2496483,133.98,133.97,31.9061069]
[1726429119857,0.2496483,133.98,133.97,31.46350343]
[1726429120852,0.2496483,133.98,133.97,16.4517]
[1726429126662,0.2496483,133.98,133.97,31.46350343]
[1726429127579,0.2496483,133.98,133.97,16.4517]
[1726429129285,0.2496483,133.98,133.97,31.46350343]
[1726429130483,0.2496483,133.98,133.97,35.63903949]
[1726429132801,0.2496483,133.98,133.97,20.62723606]
[1726429135093,0.2496483,133.98,133.97,16.4517]
[1726429135577,0.2496483,133.98,133.97,27.308163]
[1726429135992,0.2496483,133.98,133.97,20.62726269]
[1726429136693,0.2496483,133.98,133.97,16.4517]
[1726429137492,0.2496483,133.98,133.97,20.62726269]
[1726429137894,0.2496483,133.98,133.97,4.17556269]
[1726429138491,7.7134483,133.98,133.97,4.17556269]
[1726429140079,7.7134483,133.98,133.9,4.17556269]
[1726429140690,7.7134483,133.98,133.89,38.63490914]
[1726429140891,7.7134483,133.98,133.91,4.17748762]
[1726429141070,7.7134483,133.98,133.9,4.17748762]
[1726429141269,7.7134483,133.98,133.91,4.17748762]
[1726429141598,0.2496483,133.98,133.92,4.17748762]
[1726429141792,0.2496483,133.98,133.89,41.61626068]
[1726429141993,0.2496483,133.98,133.93,4.17732621]
[1726429142293,0.2496483,133.98,133.9,19.18912964]
[1726429143572,0.2496483,133.98,133.91,4.17732621]
[1726429144100,0.2496483,133.98,133.92,4.17732621]
[1726429144283,0.2496483,133.98,133.93,4.17732621]
[1726429144493,0.2496483,133.98,133.94,4.17732621]
[1726429144689,0.2496483,133.98,133.9,15.01180343]
[1726429144896,0.2496483,133.98,133.91,4.17727962]
[1726429145099,0.2496483,133.98,133.92,4.17727962]
[1726429145279,0.2496483,133.98,133.93,4.17727962]
[1726429145494,0.2496483,133.98,133.89,15.8138]
[1726429146184,0.2496483,133.98,133.9,4.17783923]
[1726429146393,7.4643,133.97,133.9,4.17783923]
[1726429147110,7.4643,133.97,133.91,4.17783923]
[1726429148417,7.465,133.96,133.92,4.17783923]
[1726429148598,7.465,133.96,133.91,4.17802564]
[1726429148915,7.465,133.96,133.89,15.8138]
[1726429149088,7.465,133.96,133.9,4.17804978]
[1726429149288,7.465,133.96,133.91,4.17804978]
[1726429149591,7.465,133.96,133.9,4.17804978]
[1726429149892,7.465,133.96,133.91,4.17804978]
[1726429150097,7.465,133.96,133.9,4.17804978]
[1726429150703,31.4907323,133.98,133.9,4.17804978]
[1726429150889,31.4907323,133.98,133.91,4.17804978]
[1726429151094,20.2496483,133.98,133.91,4.17804978]
[1726429151490,0.2496483,133.98,133.92,4.17804978]
[1726429153802,0.2496483,133.98,133.91,15.01180343]
[1726429154107,0.2496483,133.98,133.92,4.17734806]
[1726429157316,0.2496483,133.98,133.91,15.01180343]
[1726429157501,0.2496483,133.98,133.92,4.17722549]
[1726429158789,0.2496483,133.98,133.91,15.01180343]
[1726429159629,0.2496483,133.98,133.92,4.17714547]
[1726429161213,0.2496483,133.98,133.91,15.01180343]
[1726429161428,0.2496483,133.98,133.92,4.17726217]
[1726429165424,0.2496483,133.98,133.92,4.17715548]
[1726429169027,0.2496483,133.98,133.93,4.17715548]
[1726429169520,0.2496483,133.98,133.92,4.17715548]
[1726429169726,0.2496483,133.98,133.91,15.01180343]
[1726429170421,0.2496483,133.98,133.93,4.17715565]
[1726429178911,0.2496483,133.98,133.91,15.01180343]
[1726429179727,0.2496483,133.98,133.92,15.01180343]
[1726429181640,0.2496483,133.98,133.91,23.776884]
[1726429181641,0.2496483,133.98,133.91,38.78868743]
[1726429183938,0.2496483,133.98,133.91,48.13771947]
[1726429184728,0.2496483,133.98,133.91,38.78868743]
[1726429185015,0.2496483,133.98,133.91,48.13772026]
[1726429186234,0.2496483,133.98,133.91,9.34903283]
[1726429186429,0.2496483,133.98,133.9,24.36083626]
[1726429188436,0.2496483,133.98,133.9,24.36155341]
[1726429189561,0.2496483,133.98,133.9,24.36155324]
[1726429191123,0.2496483,133.98,133.91,15.01180343]
[1726429193354,0.2496483,133.98,133.92,15.01180343]
[1726429193561,0.2496483,133.98,133.93,15.01180343]
[1726429195439,0.2496483,133.98,133.93,24.36131552]
[1726429195950,0.2496483,133.98,133.94,6.6824833]
[1726429197051,0.2496483,133.98,133.95,6.6824833]
[1726429197255,0.2496483,133.98,133.96,6.6824833]
[1726429197441,0.2496483,133.98,133.97,6.6824833]
[1726429198883,0.2496483,133.98,133.93,15.01180343]
[1726429199038,0.2496483,133.98,133.93,23.776884]
[1726429199237,0.2496483,133.98,133.97,6.6828249]
[1726429200536,0.2496483,133.98,133.92,6.6828249]
[1726429200740,0.2496483,133.98,133.91,24.36000116]
[1726429200741,0.2496483,133.98,133.93,6.6828249]
[1726429200951,0.2496483,133.98,133.94,6.6828249]
[1726429201162,0.2496483,133.98,133.95,6.6828249]
[1726429201343,0.2496483,133.98,133.91,9.3492205]
[1726429201667,0.2496483,133.98,133.95,6.6836104]
[1726429201865,0.2496483,133.98,133.92,6.6836104]
[1726429202166,0.2496483,133.98,133.91,9.3492205]
[1726429204595,20.2496483,133.98,133.89,7.80836938]
[1726429204792,6.1092,133.97,133.9,9.34994554]
[1726429204975,15.3333,133.96,133.89,9.34994554]
[1726429206068,23.776884,133.95,133.87,9.34994554]
[1726429207283,31.242384,133.95,133.87,9.34994554]
[1726429208492,15.3333,133.96,133.87,24.36174897]
[1726429210087,15.3333,133.96,133.87,15.01180343]
[1726429210383,22.7985,133.96,133.86,24.36174897]
[1726429210689,7.4654,133.95,133.86,24.36174897]
[1726429211358,7.4654,133.95,133.86,24.36333324]
[1726429211685,22.7983,133.96,133.86,15.01180343]
[1726429211888,22.7983,133.96,133.85,16.0855]
[1726429211889,22.7983,133.96,133.88,9.34989647]
[1726429212182,15.3333,133.96,133.89,9.34989647]
[1726429212389,15.3333,133.96,133.9,15.01180343]
[1726429215587,15.3333,133.96,133.91,15.01180343]
[1726429226103,15.3333,133.96,133.89,9.349462]
[1726429227397,22.7983,133.96,133.89,9.349462]
[1726429229370,15.3333,133.96,133.9,15.01180343]
[1726429230809,15.3333,133.96,133.89,9.349462]
[1726429231088,22.7982,133.96,133.89,9.349462]
[1726429231292,7.4655,133.95,133.89,9.349462]
[1726429231999,6.4395,133.94,133.87,9.349462]
[1726429232201,6.4395,133.94,133.87,9.35113228]
[1726429232900,6.4395,133.94,133.86,9.35113228]
[1726429233579,39.412884,133.93,133.86,9.35113228]
[1726429233893,61.872884,133.93,133.84,9.60078058]
[1726429234098,7.4672,133.92,133.84,9.60078058]
[1726429234888,61.872884,133.93,133.84,24.61258401]
[1726429234889,39.412884,133.93,133.84,24.61258401]
[1726429235400,46.879684,133.93,133.84,24.61258401]
[1726429235603,69.339684,133.93,133.84,0.2496483]
[1726429235783,7.4672,133.92,133.84,0.2496483]
[1726429236301,6.6637,133.91,133.84,0.2496483]
[1726429236680,15.636,133.9,133.84,0.2496483]
[1726429240203,23.1043,133.9,133.84,0.2496483]
[1726429240377,31.245784,133.89,133.84,0.2496483]
[1726429240920,7.4694,133.88,133.84,0.2496483]
[1726429241205,7.4705,133.86,133.84,0.2496483]
[1726429241383,22.2997,133.87,133.84,0.2496483]
[1726429244202,29.7696,133.87,133.84,0.2496483]
[1726429245072,23.776884,133.86,133.84,0.2496483]
[1726429253005,22.2997,133.87,133.84,0.2496483]
[1726429253391,29.7696,133.87,133.84,0.2496483]
[1726429254798,23.776884,133.86,133.84,0.2496483]
[1726429255111,31.247484,133.86,133.84,0.2496483]
[1726429256484,23.776884,133.86,133.84,0.2496483]
[1726429260205,31.247384,133.86,133.84,0.2496483]
[1726429261417,31.247884,133.85,133.84,0.2496483]
[1726429265328,23.776884,133.83,133.8,0.2496483]
[1726429265701,23.776884,133.84,133.8,0.2496483]
[1726429266433,7.4721,133.83,133.8,0.2496483]
[1726429270331,23.776884,133.82,133.8,0.2496483]
[1726429270844,31.249584,133.82,133.8,0.2496483]
[1726429271637,23.776884,133.81,133.8,0.2496483]
[1726429272834,7.4722,133.83,133.8,0.2496483]
[1726429273030,23.776884,133.82,133.8,0.2496483]
[1726429273339,393.071,133.85,133.8,0.2496483]
[1726429273535,7.4716,133.84,133.8,0.2496483]
[1726429274831,23.776884,133.84,133.8,0.2496483]
[1726429275566,385.6,133.85,133.8,0.2496483]
[1726429276738,43.776884,133.88,133.8,0.2496483]
[1726429276945,27.4699,133.88,133.8,0.2496483]
[1726429277147,7.47,133.87,133.8,0.2496483]
[1726429278058,23.776884,133.86,133.8,0.2496483]
[1726429290474,7.4705,133.86,133.8,0.2496483]
[1726429290987,7.4705,133.86,133.81,4.18179153]
[1726429291151,7.4705,133.86,133.8,0.2496483]
[1726429292175,55.0587021,133.87,133.8,0.2496483]
[1726429292378,23.776884,133.84,133.8,0.2496483]
[1726429292749,7.4711,133.85,133.8,0.2496483]
[1726429294551,7.4705,133.86,133.8,0.2496483]
[1726429294757,7.4705,133.86,133.8,1.5597012]
[1726429295474,7.4705,133.86,133.8,0.2496483]
[1726429296175,7.4705,133.86,133.81,4.18195935]
[1726429296482,7.4705,133.86,133.8,0.2496483]
[1726429296655,7.4705,133.86,133.81,4.18195935]
[1726429296872,7.4705,133.86,133.8,0.2496483]
[1726429297180,7.4705,133.86,133.81,4.18200277]
[1726429297470,7.4705,133.86,133.8,0.2496483]
[1726429297654,7.471,133.85,133.81,4.18200277]
[1726429297852,7.471,133.85,133.8,0.2496483]
[1726429298064,7.4717,133.84,133.8,0.2496483]
[1726429298375,7.4721,133.83,133.8,0.2496483]
[1726429298579,23.776884,133.83,133.8,0.2496483]
[1726429299158,7.4716,133.84,133.8,0.2496483]
[1726429300746,7.4721,133.83,133.8,0.2496483]
[1726429300952,7.4728,133.82,133.8,0.2496483]
[1726429302118,7.4732,133.81,133.8,0.2496483]
[1726429302380,31.250084,133.81,133.8,0.2496483]
[1726429303478,23.776884,133.81,133.8,0.2496483]
[1726429304244,7.4727,133.82,133.8,0.2496483]
[1726429304473,7.4722,133.83,133.8,0.2496483]
[1726429304653,23.776884,133.82,133.8,0.2496483]
[1726429305680,31.249584,133.82,133.8,0.2496483]
[1726429310007,31.250084,133.81,133.8,0.2496483]
[1726429316799,7.4728,133.82,133.8,0.2496483]
[1726429317390,20.0,133.83,133.8,0.2496483]
[1726429319083,7.4711,133.85,133.8,0.2496483]
[1726429319808,20.0,133.85,133.8,0.2496483]
[1726429320003,27.4712,133.85,133.8,0.2496483]
[1726429321128,7.4716,133.84,133.8,0.2496483]
[1726429324643,5.60369803,133.84,133.8,0.2496483]
[1726429325400,5.60369803,133.84,133.8,7.7233483]
[1726429332502,5.60369803,133.84,133.8,0.2496483]
[1726429337338,22.47,133.87,133.8,0.2496483]
[1726429337339,27.4705,133.86,133.81,7.4728]
[1726429339932,7.4711,133.85,133.81,7.4728]
[1726429342150,29.9411,133.85,133.81,7.4728]
[1726429342311,7.4711,133.85,133.81,7.4728]
[1726429342712,7.4699,133.88,133.83,7.4721]
[1726429344216,408.07,133.9,133.83,0.58567375]
[1726429344217,7.4688,133.89,133.83,0.58567375]
[1726429347326,7.4688,133.89,133.82,16.0555]
[1726429347651,7.4688,133.89,133.83,0.58787576]
[1726429348120,7.4688,133.89,133.82,16.0555]
[1726429350820,23.776884,133.88,133.82,16.0555]
[1726429351027,7.4699,133.87,133.82,16.0555]
[1726429351563,23.776884,133.86,133.82,16.0555]
[1726429352060,7.4716,133.84,133.82,16.0555]
[1726429352839,7.4711,133.85,133.82,16.0555]
[1726429354735,27.4706,133.86,133.82,16.0555]
[1726429360872,7.471,133.85,133.82,16.0555]
[1726429366662,31.247484,133.86,133.82,16.0555]
[1726429366851,7.4706,133.86,133.82,16.0555]
[1726429375672,7.4712,133.85,133.82,16.0555]
[1726429381503,7.4705,133.86,133.82,23.528]
[1726429381808,20.0,133.87,133.82,23.528]
[1726429381809,27.4699,133.87,133.82,23.528]
[1726429382486,7.4694,133.88,133.83,7.472]
[1726429383199,7.4699,133.87,133.83,7.472]
[1726429387382,7.4699,133.87,133.82,16.0555]
[1726429387703,7.4705,133.86,133.82,16.0555]
[1726429394189,7.4705,133.86,133.83,4.1817398]
[1726429394500,7.4705,133.86,133.82,16.0555]
[1726429394712,7.4705,133.86,133.83,4.1816545]
[1726429394998,7.4705,133.86,133.82,16.0555]
[1726429395212,7.4705,133.86,133.83,4.18178748]
[1726429395510,7.4705,133.86,133.82,16.0555]
[1726429396416,7.4705,133.86,133.83,8.36351432]
[1726429396795,7.4705,133.86,133.83,4.18178586]
[1726429399435,7.4699,133.87,133.83,4.18178586]
[1726429400097,393.0692,133.89,133.83,4.18178586]
[1726429400296,393.0692,133.89,133.84,4.18132091]
[1726429400504,393.0692,133.89,133.82,16.0555]
[1726429400505,7.4694,133.88,133.82,16.0555]
[1726429401818,7.4694,133.88,133.83,4.18129411]
[1726429402510,385.6,133.93,133.85,21.362]
[1726429402704,7.4677,133.91,133.85,21.362]
[1726429403020,7.4677,133.91,133.86,4.18073781]
[1726429403218,7.4677,133.91,133.85,21.362]
[1726429403423,7.4677,133.91,133.86,4.1806014]
[1726429403600,7.4677,133.91,133.85,21.362]
[1726429403799,7.4677,133.91,133.86,4.18049391]
[1726429403999,7.4677,133.91,133.85,21.362]
[1726429404211,7.4677,133.91,133.86,4.18046924]
[1726429404533,7.4683,133.9,133.85,21.362]
[1726429404744,7.4683,133.9,133.86,4.18055108]
[1726429405020,7.4683,133.9,133.85,21.362]
[1726429408226,7.47,133.87,133.85,21.362]
[1726429408523,7.4704,133.86,133.85,15.1438]
[1726429408706,7.4704,133.86,133.83,4.18129411]
[1726429410625,7.4704,133.86,133.81,21.362]
[1726429412028,7.471,133.85,133.81,21.362]
[1726429412812,7.4705,133.86,133.81,21.362]
[1726429415410,7.471,133.85,133.81,21.362]
[1726429415732,7.4706,133.86,133.81,21.362]
[1726429421236,7.4711,133.85,133.81,21.362]
[1726429421540,22.47,133.89,133.81,21.362]
[1726429421541,7.4716,133.84,133.81,15.1438]
[1726429423243,7.4722,133.83,133.8,0.2496483]
[1726429425619,7.4727,133.82,133.8,0.2496483]
[1726429426658,7.4722,133.83,133.8,0.2496483]
[1726429426832,7.4716,133.84,133.8,0.2496483]
[1726429429935,7.4722,133.83,133.8,0.2496483]
[1726429430426,7.4728,133.82,133.8,0.2496483]
[1726429431537,7.4732,133.81,133.8,0.2496483]
[1726429443861,7.4728,133.82,133.8,0.2496483]
[1726429449790,7.4722,133.83,133.8,0.2496483]
[1726429452759,27.4717,133.84,133.8,7.7233483]
[1726429452965,7.4717,133.84,133.8,7.7233483]
[1726429453169,393.0711,133.85,133.8,7.7233483]
[1726429453342,393.0711,133.85,133.81,7.4732]
[1726429453548,385.6,133.85,133.81,22.8226]
[1726429454639,385.6,133.85,133.81,15.3494]
[1726429454964,385.6,133.85,133.82,7.4726]
[1726429455166,385.6,133.85,133.81,15.3494]
[1726429459865,7.471,133.86,133.81,15.3494]
[1726429462154,22.47,133.88,133.81,15.3494]
[1726429462352,7.471,133.85,133.81,15.3494]
[1726429464467,7.4716,133.84,133.81,15.3494]
[1726429464846,7.4716,133.84,133.8,0.2496483]
[1726429465345,7.4722,133.83,133.8,0.2496483]
[1726429469056,7.4716,133.84,133.8,0.2496483]
[1726429470352,7.4716,133.84,133.8,7.7233483]
[1726429476275,7.4716,133.84,133.8,0.2496483]
[1726429476460,7.4721,133.83,133.8,0.2496483]
[1726429500308,27.4709,133.86,133.8,0.2496483]
[1726429500599,385.6,133.87,133.82,21.4825]
[1726429501365,22.47,133.9,133.82,21.4825]
[1726429502071,42.47,133.89,133.82,21.4825]
[1726429502276,7.4694,133.88,133.82,21.4825]
[1726429502891,7.4694,133.88,133.83,4.1813967]
[1726429503077,7.4694,133.88,133.82,21.4825]
[1726429503282,29.9394,133.88,133.82,21.4825]
[1726429503584,7.4694,133.88,133.82,21.4825]
[1726429506815,42.47,133.89,133.82,21.4825]
[1726429506971,7.4705,133.86,133.82,21.4825]
[1726429507897,7.47,133.87,133.82,21.4825]
[1726429509900,7.4705,133.86,133.82,21.4825]
[1726429510203,7.4711,133.85,133.82,21.4825]
[1726429511774,46.246884,133.88,133.82,21.4825]
[1726429512002,7.4721,133.83,133.82,15.3949]
[1726429512183,7.4721,133.83,133.8,0.2496483]
[1726429513372,7.4728,133.82,133.8,0.2496483]
[1726429516800,7.4732,133.81,133.8,0.2496483]
[1726429524711,31.250084,133.81,133.8,0.2496483]
[1726429537326,7.4727,133.82,133.8,0.2496483]
[1726429537608,27.4723,133.83,133.8,0.2496483]
[1726429538425,20.0,133.83,133.8,16.6215483]
[1726429541213,27.4724,133.83,133.8,16.6215483]
[1726429541411,27.4724,133.83,133.8,0.2496483]
[1726429541412,20.0,133.83,133.8,0.2496483]
[1726429542521,7.4727,133.82,133.8,0.2496483]
[1726429548525,7.4732,133.81,133.8,0.2496483]
[1726429549229,7.4728,133.82,133.8,0.2496483]
[1726429549863,7.4722,133.83,133.8,0.2496483]
[1726429556511,27.4715,133.85,133.8,0.2496483]
[1726429556713,7.4715,133.85,133.81,15.6018]
[1726429558414,7.4715,133.85,133.81,23.0749]